[Event "Live Chess"]
[Site "Chess.com"]
[Date "2024.06.02"]
[Round "-"]
[White "ProfPoisson"]
[Black "TedUdale"]
[Result "0-1"]
[WhiteElo "1321"]
[BlackElo "2114"]
[TimeControl "300"]
[EndTime "2:22:33 PDT"]
[Termination "TedUdale won by resignation"]

1. e4 {[%clk 0:04:55.2]} 1... c5 {[%clk 0:04:58.7]} 2. Nc3 {[%clk 0:04:52.3]}
2... e6 {[%clk 0:04:57]} 3. f4 {[%clk 0:04:49.3]} 3... Nc6 {[%clk 0:04:54.9]} 4.
Nf3 {[%clk 0:04:47.8]} 4... Nf6 {[%clk 0:04:51.2]} 5. Bb5 {[%clk 0:04:45.2]}
5... a6 {[%clk 0:04:49.6]} 6. Bxc6 {[%clk 0:04:43.8]} 6... bxc6 {[%clk
0:04:47.7]} 7. d3 {[%clk 0:04:42.7]} 7... d5 {[%clk 0:04:45.1]} 8. e5 {[%clk
0:04:36.9]} 8... Nd7 {[%clk 0:04:43.9]} 9. O-O {[%clk 0:04:35.3]} 9... Be7
{[%clk 0:04:24.4]} 10. Qe1 {[%clk 0:04:33.5]} 10... a5 {[%clk 0:04:15]} 11. Na4
{[%clk 0:04:27.6]} 11... Ba6 {[%clk 0:04:11.9]} 12. Bd2 {[%clk 0:04:10.6]} 12...
c4 {[%clk 0:04:08.8]} 13. Bxa5 {[%clk 0:04:07.7]} 13... Qc8 {[%clk 0:04:00.9]}
14. Nb6 {[%clk 0:03:50.9]} 14... Nxb6 {[%clk 0:03:59.4]} 15. Bxb6 {[%clk
0:03:49.4]} 15... cxd3 {[%clk 0:03:55.1]} 16. cxd3 {[%clk 0:03:46.5]} 16... Bxd3
{[%clk 0:03:53]} 17. Rf2 {[%clk 0:03:45]} 17... Qa6 {[%clk 0:03:41.5]} 18. Bd4
{[%clk 0:03:40.5]} 18... c5 {[%clk 0:03:36.2]} 19. Bc3 {[%clk 0:03:34.9]} 19...
c4 {[%clk 0:03:33.3]} 20. Bb4 {[%clk 0:03:30.2]} 20... Qb6 {[%clk 0:03:20.3]}
21. Bxe7 {[%clk 0:03:27.3]} 21... Kxe7 {[%clk 0:03:20.2]} 22. Kh1 {[%clk
0:03:12.5]} 22... Ra7 {[%clk 0:03:16.1]} 23. Ng5 {[%clk 0:02:59]} 23... h6
{[%clk 0:03:11.2]} 24. Nh3 {[%clk 0:02:48.1]} 24... Rb8 {[%clk 0:03:06.3]} 25.
f5 {[%clk 0:02:45.9]} 25... Bxf5 {[%clk 0:03:01.8]} 26. Qf1 {[%clk 0:02:22.9]}
26... Qd4 {[%clk 0:02:46.2]} 27. Rxf5 {[%clk 0:02:15.4]} 27... exf5 {[%clk
0:02:44.6]} 28. Qxf5 {[%clk 0:02:13.7]} 28... Qe4 {[%clk 0:02:34]} 29. Qf2
{[%clk 0:01:58.3]} 29... Rab7 {[%clk 0:02:27.3]} 30. Rf1 {[%clk 0:01:54.9]}
30... Kf8 {[%clk 0:02:23.8]} 31. Qc5+ {[%clk 0:01:50.1]} 31... Kg8 {[%clk
0:02:22]} 32. Nf4 {[%clk 0:01:36.1]} 32... Rxb2 {[%clk 0:02:17.6]} 33. Rg1
{[%clk 0:01:05.4]} 33... Qxf4 {[%clk 0:02:11.8]} 34. Qxd5 {[%clk 0:01:04.3]}
34... Rb1 {[%clk 0:02:02.9]} 35. e6 {[%clk 0:00:56.4]} 35... Rxg1+ {[%clk
0:02:00.8]} 36. Kxg1 {[%clk 0:00:53]} 36... Rb1+ {[%clk 0:01:59.9]} 0-1

[Event "Live Chess"]
[Site "Chess.com"]
[Date "2024.06.02"]
[Round "-"]
[White "ameetghasi100"]
[Black "Dhaydon19"]
[Result "1-0"]
[WhiteElo "2793"]
[BlackElo "2626"]
[TimeControl "300"]
[EndTime "2:22:34 PDT"]
[Termination "ameetghasi100 won by resignation"]

1. c4 {[%clk 0:04:58.8]} 1... c6 {[%clk 0:04:59.8]} 2. e3 {[%clk 0:04:57.3]}
2... d5 {[%clk 0:04:59.7]} 3. Nf3 {[%clk 0:04:56.7]} 3... Nf6 {[%clk 0:04:58.7]}
4. b3 {[%clk 0:04:56.3]} 4... e6 {[%clk 0:04:57.3]} 5. Bb2 {[%clk 0:04:56]} 5...
Bd6 {[%clk 0:04:56.7]} 6. g4 {[%clk 0:04:55.2]} 6... h6 {[%clk 0:04:51.5]} 7.
Rg1 {[%clk 0:04:51.4]} 7... Nbd7 {[%clk 0:04:49.7]} 8. h4 {[%clk 0:04:49.9]}
8... e5 {[%clk 0:04:43.7]} 9. g5 {[%clk 0:04:47.2]} 9... hxg5 {[%clk 0:04:42.3]}
10. hxg5 {[%clk 0:04:47.1]} 10... Ne4 {[%clk 0:04:40.9]} 11. Nc3 {[%clk
0:04:46.2]} 11... Nxc3 {[%clk 0:04:38.6]} 12. dxc3 {[%clk 0:04:44.7]} 12... Nb6
{[%clk 0:04:33.5]} 13. c5 {[%clk 0:04:26]} 13... Bxc5 {[%clk 0:04:30.4]} 14.
Nxe5 {[%clk 0:04:23.2]} 14... Bd6 {[%clk 0:04:27.1]} 15. Nf3 {[%clk 0:04:17.3]}
15... Qe7 {[%clk 0:04:24]} 16. a3 {[%clk 0:04:15.8]} 16... Bf5 {[%clk 0:04:20]}
17. c4 {[%clk 0:04:07.1]} 17... Rg8 {[%clk 0:04:13.3]} 18. Nd4 {[%clk
0:03:57.2]} 18... Be4 {[%clk 0:04:09.7]} 19. Qg4 {[%clk 0:03:21.7]} 19... dxc4
{[%clk 0:04:02.1]} 20. bxc4 {[%clk 0:03:19.8]} 20... Na4 {[%clk 0:03:58.4]} 21.
Bc1 {[%clk 0:03:16.6]} 21... Nc5 {[%clk 0:03:46.4]} 22. Bd2 {[%clk 0:03:10.3]}
22... Nd3+ {[%clk 0:03:41.2]} 23. Bxd3 {[%clk 0:03:08.2]} 23... Bxd3 {[%clk
0:03:41.1]} 24. Bc3 {[%clk 0:02:58.7]} 24... g6 {[%clk 0:03:38.1]} 25. Rd1
{[%clk 0:02:54.7]} 25... Qe4 {[%clk 0:03:20.3]} 26. Qxe4+ {[%clk 0:02:34.3]}
26... Bxe4 {[%clk 0:03:18.5]} 27. f3 {[%clk 0:02:33.9]} 27... O-O-O {[%clk
0:03:07]} 28. fxe4 {[%clk 0:02:32]} 28... Rge8 {[%clk 0:03:06.4]} 29. Rg4 {[%clk
0:02:29.9]} 29... Bxa3 {[%clk 0:03:04.2]} 30. Nc2 {[%clk 0:02:26.2]} 30... Bc5
{[%clk 0:03:01.6]} 31. Rxd8+ {[%clk 0:02:23.6]} 31... Kxd8 {[%clk 0:03:00.3]}
32. Ke2 {[%clk 0:02:21.2]} 32... Be7 {[%clk 0:02:54.9]} 33. Rf4 {[%clk
0:02:14.7]} 33... Bxg5 {[%clk 0:02:53.7]} 34. Rxf7 {[%clk 0:02:13.4]} 34... Rxe4
{[%clk 0:02:50.8]} 35. Bd4 {[%clk 0:02:07.6]} 35... b6 {[%clk 0:02:45.8]} 36.
Rxa7 {[%clk 0:02:00.9]} 36... c5 {[%clk 0:02:42.2]} 37. Kd3 {[%clk 0:02:00]}
37... Re7 {[%clk 0:02:39.1]} 38. Ra8+ {[%clk 0:01:58.1]} 38... Kc7 {[%clk
0:02:36.3]} 39. Bc3 {[%clk 0:01:56]} 39... Rd7+ {[%clk 0:02:34.5]} 40. Ke2
{[%clk 0:01:54.4]} 40... Kb7 {[%clk 0:02:29.7]} 41. Rg8 {[%clk 0:01:52.7]} 41...
Rd6 {[%clk 0:02:28.3]} 42. e4 {[%clk 0:01:51.9]} 42... Re6 {[%clk 0:02:27.2]}
43. Kf3 {[%clk 0:01:48.6]} 43... Kc6 {[%clk 0:02:25.6]} 44. e5 {[%clk
0:01:46.4]} 44... b5 {[%clk 0:02:23]} 45. Rc8+ {[%clk 0:01:39]} 45... Kb7 {[%clk
0:02:19.8]} 46. Rxc5 {[%clk 0:01:37.4]} 46... bxc4 {[%clk 0:02:19.3]} 47. Ke4
{[%clk 0:01:35.3]} 47... Bf6 {[%clk 0:02:08.7]} 48. Rxc4 {[%clk 0:01:32.1]}
48... Bxe5 {[%clk 0:02:01.1]} 49. Bxe5 {[%clk 0:01:32]} 49... Rc6 {[%clk
0:02:00]} 50. Rb4+ {[%clk 0:01:30.6]} 50... Rb6 {[%clk 0:01:58.9]} 51. Rd4
{[%clk 0:01:30.1]} 51... Rc6 {[%clk 0:01:56.8]} 52. Ne3 {[%clk 0:01:29.6]} 52...
Re6 {[%clk 0:01:54.9]} 53. Nd5 {[%clk 0:01:28.5]} 53... Kc6 {[%clk 0:01:52.8]}
54. Nf4 {[%clk 0:01:28]} 54... Re8 {[%clk 0:01:51]} 55. Rd6+ {[%clk 0:01:27.1]}
55... Kc5 {[%clk 0:01:49.8]} 56. Nd3+ {[%clk 0:01:26.2]} 56... Kc4 {[%clk
0:01:48.4]} 57. Rc6+ {[%clk 0:01:25.6]} 57... Kb5 {[%clk 0:01:47.3]} 58. Rxg6
{[%clk 0:01:25.5]} 58... Rg8 {[%clk 0:01:43.9]} 59. Rxg8 {[%clk 0:01:19.7]} 1-0

[Event "Live Chess"]
[Site "Chess.com"]
[Date "2024.06.02"]
[Round "-"]
[White "Greenbecker"]
[Black "MasterCaptainHaddock"]
[Result "0-1"]
[WhiteElo "1729"]
[BlackElo "1816"]
[TimeControl "300"]
[EndTime "2:22:39 PDT"]
[Termination "MasterCaptainHaddock won by checkmate"]

1. e4 {[%clk 0:04:56.2]} 1... c6 {[%clk 0:04:59.3]} 2. d4 {[%clk 0:04:52.2]}
2... d5 {[%clk 0:04:59.2]} 3. exd5 {[%clk 0:04:51.5]} 3... cxd5 {[%clk
0:04:57.6]} 4. Nf3 {[%clk 0:04:51.1]} 4... Bg4 {[%clk 0:04:54.6]} 5. Bd3 {[%clk
0:04:50.2]} 5... Bxf3 {[%clk 0:04:51.4]} 6. Qxf3 {[%clk 0:04:48.2]} 6... Nf6
{[%clk 0:04:51]} 7. O-O {[%clk 0:04:45]} 7... e6 {[%clk 0:04:49.6]} 8. Re1
{[%clk 0:04:42.8]} 8... Bd6 {[%clk 0:04:47.4]} 9. Bg5 {[%clk 0:04:39]} 9... Nbd7
{[%clk 0:04:35.5]} 10. Nc3 {[%clk 0:04:33.5]} 10... O-O {[%clk 0:04:23.6]} 11.
Qh3 {[%clk 0:04:23.1]} 11... Qb6 {[%clk 0:04:02.8]} 12. Ne2 {[%clk 0:03:53.3]}
12... Qxb2 {[%clk 0:03:56.5]} 13. Reb1 {[%clk 0:03:51.2]} 13... Qa3 {[%clk
0:03:47.6]} 14. Rxb7 {[%clk 0:03:49.3]} 14... Rad8 {[%clk 0:03:46]} 15. Rxd7
{[%clk 0:03:44.1]} 15... Rxd7 {[%clk 0:03:45.9]} 16. Bxf6 {[%clk 0:03:41.9]}
16... h6 {[%clk 0:03:36.5]} 17. Qg4 {[%clk 0:03:18.9]} 17... g5 {[%clk
0:03:27.3]} 18. Bxg5 {[%clk 0:03:10.4]} 18... f5 {[%clk 0:02:57.6]} 19. Bxf5
{[%clk 0:02:46]} 19... exf5 {[%clk 0:02:51.3]} 20. Qh5 {[%clk 0:02:32.2]} 20...
hxg5 {[%clk 0:02:42.8]} 21. Qxg5+ {[%clk 0:02:29.4]} 21... Rg7 {[%clk
0:02:41.5]} 22. Qh6 {[%clk 0:02:23.2]} 22... Qb2 {[%clk 0:02:38.5]} 23. Rf1
{[%clk 0:02:09.7]} 23... Qxc2 {[%clk 0:02:33.4]} 24. Qxd6 {[%clk 0:02:01.9]}
24... Qxe2 {[%clk 0:02:22.2]} 25. Qxd5+ {[%clk 0:01:59.4]} 25... Kh8 {[%clk
0:02:13.8]} 26. Qb3 {[%clk 0:01:40.3]} 26... Qg4 {[%clk 0:01:58.3]} 27. g3
{[%clk 0:01:34.3]} 27... f4 {[%clk 0:01:37.6]} 28. d5 {[%clk 0:01:25.6]} 28...
fxg3 {[%clk 0:01:29.2]} 29. fxg3 {[%clk 0:01:18.4]} 29... Rxf1+ {[%clk 0:01:26]}
30. Kxf1 {[%clk 0:01:17.4]} 30... Rf7+ {[%clk 0:01:23.4]} 31. Kg2 {[%clk
0:01:13.2]} 31... Qe2+ {[%clk 0:01:19.9]} 32. Kh3 {[%clk 0:01:10.7]} 32... Rh7#
{[%clk 0:01:18.6]} 0-1

[Event "Live Chess"]
[Site "Chess.com"]
[Date "2024.06.02"]
[Round "-"]
[White "TheSmoulderingMaster"]
[Black "jellhhggffhjjjjjj"]
[Result "1-0"]
[WhiteElo "1789"]
[BlackElo "479"]
[TimeControl "300"]
[EndTime "2:22:48 PDT"]
[Termination "TheSmoulderingMaster won on time"]

1. e4 {[%clk 0:04:56.8]} 1... d5 {[%clk 0:04:58.7]} 2. exd5 {[%clk 0:04:55.9]}
2... Nf6 {[%clk 0:04:57.5]} 3. Bb5+ {[%clk 0:04:52.9]} 3... Bd7 {[%clk
0:04:53.2]} 4. Bc4 {[%clk 0:04:51.9]} 4... a6 {[%clk 0:04:49.3]} 5. Nc3 {[%clk
0:04:50.1]} 5... Bf5 {[%clk 0:04:43.9]} 6. Nf3 {[%clk 0:04:48]} 6... c6 {[%clk
0:04:37.6]} 7. dxc6 {[%clk 0:04:45.8]} 7... Nxc6 {[%clk 0:04:35.9]} 8. Ne5
{[%clk 0:04:43.2]} 8... Nxe5 {[%clk 0:04:30.7]} 9. Bb3 {[%clk 0:04:41.3]} 9...
Nc6 {[%clk 0:04:25]} 10. O-O {[%clk 0:04:39.4]} 10... e6 {[%clk 0:04:17.1]} 11.
d3 {[%clk 0:04:36.9]} 11... Bd6 {[%clk 0:04:12.6]} 12. Qf3 {[%clk 0:04:31.8]}
12... Qe7 {[%clk 0:04:07]} 13. Re1 {[%clk 0:04:29.9]} 13... Ne5 {[%clk
0:03:49.4]} 14. Qe2 {[%clk 0:04:18.8]} 14... Neg4 {[%clk 0:03:43]} 15. g3 {[%clk
0:04:15.6]} 15... O-O {[%clk 0:03:39.3]} 16. Qf3 {[%clk 0:04:11]} 16... g6
{[%clk 0:03:21.2]} 17. Bg5 {[%clk 0:04:00.3]} 17... h6 {[%clk 0:03:14.2]} 18.
Bh4 {[%clk 0:03:55.3]} 18... Kg7 {[%clk 0:03:09.9]} 19. h3 {[%clk 0:03:50.4]}
19... Nxf2 {[%clk 0:03:01.9]} 20. Qxf2 {[%clk 0:03:47.6]} 20... g5 {[%clk
0:02:59.8]} 21. g4 {[%clk 0:03:43.1]} 21... Bg6 {[%clk 0:02:48]} 22. Bg3 {[%clk
0:03:39.2]} 22... Bc5 {[%clk 0:02:15.8]} 23. d4 {[%clk 0:03:22.2]} 23... Bb6
{[%clk 0:02:02]} 24. Be5 {[%clk 0:03:19.4]} 24... Rad8 {[%clk 0:01:55.3]} 25.
Rf1 {[%clk 0:03:17.2]} 25... Kh7 {[%clk 0:01:43]} 26. Bxf6 {[%clk 0:03:13.7]}
26... Qb4 {[%clk 0:01:27.5]} 27. Bxd8 {[%clk 0:03:07.8]} 27... Bxd4 {[%clk
0:01:25.5]} 28. Bf6 {[%clk 0:02:55.9]} 28... Bxf2+ {[%clk 0:01:23.5]} 29. Rxf2
{[%clk 0:02:55.2]} 29... h5 {[%clk 0:01:07.8]} 30. gxh5 {[%clk 0:02:45.9]} 30...
Bxh5 {[%clk 0:01:06.5]} 31. Re1 {[%clk 0:02:42.4]} 31... Kg6 {[%clk 0:01:03.5]}
32. Re4 {[%clk 0:02:35.3]} 32... Qd6 {[%clk 0:00:52]} 33. Bc4 {[%clk 0:02:29.1]}
33... Qg3+ {[%clk 0:00:35.9]} 34. Rg2 {[%clk 0:02:18.7]} 34... Qxh3 {[%clk
0:00:29.6]} 35. Bxg5 {[%clk 0:02:12.4]} 35... Rg8 {[%clk 0:00:17.8]} 36. Bd3
{[%clk 0:02:08]} 36... Kg7 {[%clk 0:00:12]} 37. Rh4 {[%clk 0:02:00]} 37... Bf3
{[%clk 0:00:10.2]} 38. Bh6+ {[%clk 0:01:56.1]} 38... Kh8 {[%clk 0:00:05]} 39.
Bf8+ {[%clk 0:01:53]} 1-0

[Event "Live Chess"]
[Site "Chess.com"]
[Date "2024.06.02"]
[Round "-"]
[White "uselessduffer"]
[Black "DavrosLight"]
[Result "1-0"]
[WhiteElo "2403"]
[BlackElo "802"]
[TimeControl "300"]
[EndTime "2:23:01 PDT"]
[Termination "uselessduffer won by resignation"]

1. e4 {[%clk 0:04:56.7]} 1... e5 {[%clk 0:04:59.1]} 2. Nf3 {[%clk 0:04:52.8]}
2... Nc6 {[%clk 0:04:53.7]} 3. Bb5 {[%clk 0:04:51]} 3... f5 {[%clk 0:04:51.8]}
4. Nc3 {[%clk 0:04:46.6]} 4... Nf6 {[%clk 0:04:45.5]} 5. exf5 {[%clk 0:04:19.7]}
5... d5 {[%clk 0:04:39]} 6. Nxe5 {[%clk 0:04:15.7]} 6... Bxf5 {[%clk 0:04:29.3]}
7. Nxc6 {[%clk 0:04:08]} 7... Qe7+ {[%clk 0:04:27.1]} 8. Nxe7+ {[%clk
0:04:06.5]} 8... Kxe7 {[%clk 0:04:15.5]} 9. d4 {[%clk 0:04:04.2]} 9... a6 {[%clk
0:04:06.2]} 10. Bd3 {[%clk 0:03:53.9]} 10... Bxd3 {[%clk 0:04:04.4]} 11. Qxd3
{[%clk 0:03:53.8]} 1-0

[Event "Live Chess"]
[Site "Chess.com"]
[Date "2024.06.02"]
[Round "-"]
[White "blunderabit"]
[Black "StoreySniper"]
[Result "0-1"]
[WhiteElo "1758"]
[BlackElo "2515"]
[TimeControl "300"]
[EndTime "2:23:02 PDT"]
[Termination "StoreySniper won by resignation"]

1. e4 {[%clk 0:04:53.9]} 1... g6 {[%clk 0:04:59.1]} 2. Nc3 {[%clk 0:04:49.7]}
2... Bg7 {[%clk 0:04:58.6]} 3. g3 {[%clk 0:04:48.1]} 3... c5 {[%clk 0:04:57.7]}
4. Bg2 {[%clk 0:04:46.5]} 4... Nc6 {[%clk 0:04:57.4]} 5. d3 {[%clk 0:04:44.7]}
5... d6 {[%clk 0:04:56.7]} 6. Be3 {[%clk 0:04:43.6]} 6... e5 {[%clk 0:04:55.9]}
7. Qd2 {[%clk 0:04:42.2]} 7... Nge7 {[%clk 0:04:54.6]} 8. Bh6 {[%clk 0:04:39.5]}
8... Bxh6 {[%clk 0:04:53.3]} 9. Qxh6 {[%clk 0:04:37.8]} 9... Nd4 {[%clk
0:04:50.4]} 10. O-O-O {[%clk 0:04:24.6]} 10... Be6 {[%clk 0:04:47.3]} 11. Nge2
{[%clk 0:04:22.8]} 11... Qa5 {[%clk 0:04:42.3]} 12. a3 {[%clk 0:04:09.2]} 12...
b5 {[%clk 0:04:40.3]} 13. Nd5 {[%clk 0:03:56.3]} 13... Nxe2+ {[%clk 0:04:30]}
14. Kb1 {[%clk 0:03:51.5]} 14... Bxd5 {[%clk 0:04:26]} 15. exd5 {[%clk
0:03:49.5]} 15... b4 {[%clk 0:04:18.7]} 16. axb4 {[%clk 0:03:37.3]} 16... Qxb4
{[%clk 0:04:15.4]} 17. Qd2 {[%clk 0:03:35.4]} 17... Qxd2 {[%clk 0:04:09.8]} 18.
Rxd2 {[%clk 0:03:33.4]} 18... Nd4 {[%clk 0:04:09.4]} 0-1

[Event "Live Chess"]
[Site "Chess.com"]
[Date "2024.06.02"]
[Round "-"]
[White "ACM42"]
[Black "crais6"]
[Result "1-0"]
[WhiteElo "2160"]
[BlackElo "1603"]
[TimeControl "300"]
[EndTime "2:23:19 PDT"]
[Termination "ACM42 won on time"]

1. e4 {[%clk 0:04:59.3]} 1... c5 {[%clk 0:04:55.8]} 2. Nf3 {[%clk 0:04:58]} 2...
Nc6 {[%clk 0:04:54.7]} 3. d4 {[%clk 0:04:57.5]} 3... cxd4 {[%clk 0:04:53.1]} 4.
Nxd4 {[%clk 0:04:57.4]} 4... e5 {[%clk 0:04:51.9]} 5. Nb5 {[%clk 0:04:56.3]}
5... d6 {[%clk 0:04:50]} 6. c4 {[%clk 0:04:54.2]} 6... a6 {[%clk 0:04:48.7]} 7.
N5c3 {[%clk 0:04:53.1]} 7... Be6 {[%clk 0:04:44.7]} 8. Bd3 {[%clk 0:04:50.6]}
8... Be7 {[%clk 0:04:43.3]} 9. O-O {[%clk 0:04:49.6]} 9... Nf6 {[%clk
0:04:30.3]} 10. Nd5 {[%clk 0:04:41.8]} 10... O-O {[%clk 0:04:23.3]} 11. Nbc3
{[%clk 0:04:27.2]} 11... Nd4 {[%clk 0:04:15.5]} 12. f4 {[%clk 0:04:16.4]} 12...
Bxd5 {[%clk 0:04:04.1]} 13. exd5 {[%clk 0:04:06.2]} 13... Nd7 {[%clk 0:03:54.9]}
14. Be3 {[%clk 0:03:44]} 14... f5 {[%clk 0:03:44.2]} 15. Ne2 {[%clk 0:03:19.1]}
15... Nxe2+ {[%clk 0:03:31.3]} 16. Bxe2 {[%clk 0:03:11.4]} 16... e4 {[%clk
0:03:27.8]} 17. Bd4 {[%clk 0:03:06.6]} 17... Bf6 {[%clk 0:03:26.4]} 18. b4
{[%clk 0:03:02.6]} 18... a5 {[%clk 0:03:13.6]} 19. a3 {[%clk 0:03:01]} 19... b6
{[%clk 0:02:34.5]} 20. Qd2 {[%clk 0:02:37.6]} 20... Qc7 {[%clk 0:02:19.2]} 21.
Rfc1 {[%clk 0:02:36]} 21... Rfc8 {[%clk 0:02:10.9]} 22. Qe3 {[%clk 0:02:27.5]}
22... Qd8 {[%clk 0:02:03.7]} 23. g3 {[%clk 0:02:20.7]} 23... Bxd4 {[%clk
0:01:51.2]} 24. Qxd4 {[%clk 0:02:19]} 24... Qf6 {[%clk 0:01:50.7]} 25. Qxf6
{[%clk 0:02:13.3]} 25... Nxf6 {[%clk 0:01:47.7]} 26. Kf2 {[%clk 0:02:07.8]}
26... Kf8 {[%clk 0:01:41.1]} 27. Ke3 {[%clk 0:02:06.4]} 27... Ke7 {[%clk
0:01:38.8]} 28. Kd4 {[%clk 0:02:03]} 28... axb4 {[%clk 0:01:22.9]} 29. axb4
{[%clk 0:02:01.8]} 29... Nd7 {[%clk 0:01:18.2]} 30. Bf1 {[%clk 0:01:53.6]} 30...
Kf6 {[%clk 0:01:05.2]} 31. Be2 {[%clk 0:01:40]} 31... g6 {[%clk 0:01:02.6]} 32.
Bd1 {[%clk 0:01:38.8]} 32... Ke7 {[%clk 0:00:56.3]} 33. Ba4 {[%clk 0:01:37.9]}
33... Rc7 {[%clk 0:00:40.6]} 34. Bc6 {[%clk 0:01:30.6]} 34... Raa7 {[%clk
0:00:33.3]} 35. Kc3 {[%clk 0:01:01]} 35... Nb8 {[%clk 0:00:29.4]} 36. Bb5 {[%clk
0:00:57.8]} 36... Nd7 {[%clk 0:00:22.6]} 37. Kd4 {[%clk 0:00:43.2]} 37... Nf6
{[%clk 0:00:19]} 38. Re1 {[%clk 0:00:38.1]} 38... Ng4 {[%clk 0:00:15.2]} 39. h3
{[%clk 0:00:26.7]} 39... Nf6 {[%clk 0:00:06.7]} 40. Rg1 {[%clk 0:00:23.3]} 40...
h5 {[%clk 0:00:02.7]} 41. h4 {[%clk 0:00:20.7]} 1-0

[Event "Live Chess"]
[Site "Chess.com"]
[Date "2024.06.02"]
[Round "-"]
[White "bill77678"]
[Black "TJ-W"]
[Result "1-0"]
[WhiteElo "1840"]
[BlackElo "1571"]
[TimeControl "300"]
[EndTime "2:23:19 PDT"]
[Termination "bill77678 won on time"]

1. e4 {[%clk 0:04:58.4]} 1... e5 {[%clk 0:04:56.5]} 2. Nf3 {[%clk 0:04:57.7]}
2... Nc6 {[%clk 0:04:49.4]} 3. d4 {[%clk 0:04:56.5]} 3... exd4 {[%clk
0:04:47.1]} 4. Bc4 {[%clk 0:04:55.3]} 4... Nf6 {[%clk 0:04:33.1]} 5. e5 {[%clk
0:04:54.6]} 5... d5 {[%clk 0:04:23.2]} 6. Bb5 {[%clk 0:04:53.9]} 6... Ng4 {[%clk
0:04:12.3]} 7. O-O {[%clk 0:04:39.8]} 7... Bd7 {[%clk 0:04:06.6]} 8. Bxc6 {[%clk
0:04:35.2]} 8... Bxc6 {[%clk 0:04:04.9]} 9. h3 {[%clk 0:04:34.5]} 9... Nh6
{[%clk 0:03:56.4]} 10. Nxd4 {[%clk 0:04:31.9]} 10... Qd7 {[%clk 0:03:51.4]} 11.
Qe2 {[%clk 0:04:16.1]} 11... O-O-O {[%clk 0:03:42]} 12. Na3 {[%clk 0:03:56.5]}
12... Nf5 {[%clk 0:03:35.8]} 13. Nab5 {[%clk 0:03:33.5]} 13... Bxb5 {[%clk
0:02:40.7]} 14. Nxb5 {[%clk 0:03:23.3]} 14... a6 {[%clk 0:02:39.3]} 15. Nc3
{[%clk 0:03:17]} 15... d4 {[%clk 0:02:35.5]} 16. Ne4 {[%clk 0:03:14.8]} 16... d3
{[%clk 0:02:28.1]} 17. cxd3 {[%clk 0:03:11.9]} 17... Qxd3 {[%clk 0:02:24.9]} 18.
Qxd3 {[%clk 0:03:11.8]} 18... Rxd3 {[%clk 0:02:22.7]} 19. Re1 {[%clk 0:02:56.1]}
19... Nd4 {[%clk 0:02:17.2]} 20. Be3 {[%clk 0:02:47.1]} 20... Nc2 {[%clk
0:02:13.2]} 21. Red1 {[%clk 0:02:45.1]} 21... Rxd1+ {[%clk 0:02:03.1]} 22. Rxd1
{[%clk 0:02:45]} 22... Be7 {[%clk 0:01:56.2]} 23. Bf4 {[%clk 0:02:37.5]} 23...
Nb4 {[%clk 0:01:52.5]} 24. a3 {[%clk 0:02:35.8]} 24... Nc6 {[%clk 0:01:50.9]}
25. Bg3 {[%clk 0:02:31.4]} 25... Rd8 {[%clk 0:01:48.7]} 26. Rxd8+ {[%clk
0:02:30.2]} 26... Kxd8 {[%clk 0:01:46.6]} 27. f4 {[%clk 0:02:29.6]} 27... Nd4
{[%clk 0:01:29.5]} 28. Kf2 {[%clk 0:02:26.4]} 28... Kd7 {[%clk 0:01:10.3]} 29.
Bh2 {[%clk 0:02:22.6]} 29... f5 {[%clk 0:00:58.1]} 30. exf6 {[%clk 0:02:20.2]}
30... gxf6 {[%clk 0:00:50.9]} 31. Ke3 {[%clk 0:02:11.9]} 31... c5 {[%clk
0:00:41.2]} 32. g4 {[%clk 0:02:06]} 32... b5 {[%clk 0:00:30.6]} 33. f5 {[%clk
0:02:04.2]} 33... Nc2+ {[%clk 0:00:19.3]} 34. Kd2 {[%clk 0:01:56.9]} 34... Nd4
{[%clk 0:00:17.6]} 35. Bf4 {[%clk 0:01:50.1]} 35... Kc6 {[%clk 0:00:15.3]} 36.
Be3 {[%clk 0:01:41.6]} 36... Kd5 {[%clk 0:00:14.1]} 37. Nc3+ {[%clk 0:01:38.2]}
37... Ke5 {[%clk 0:00:11.4]} 38. Ne2 {[%clk 0:01:34.8]} 38... Nxe2 {[%clk
0:00:09.6]} 39. Kxe2 {[%clk 0:01:34.7]} 39... Kd5 {[%clk 0:00:08.5]} 40. Kd3
{[%clk 0:01:33.1]} 40... Bd6 {[%clk 0:00:06.7]} 41. Bf2 {[%clk 0:01:30]} 41...
Be5 {[%clk 0:00:06.6]} 42. b3 {[%clk 0:01:28.2]} 42... c4+ {[%clk 0:00:05.2]}
43. bxc4+ {[%clk 0:01:27.2]} 43... bxc4+ {[%clk 0:00:05.1]} 44. Kc2 {[%clk
0:01:26.1]} 44... Ke4 {[%clk 0:00:04.1]} 45. Be1 {[%clk 0:01:10.8]} 45... Bd4
{[%clk 0:00:04]} 46. Bc3 {[%clk 0:01:06.1]} 46... Bxc3 {[%clk 0:00:02.2]} 47.
Kxc3 {[%clk 0:01:06]} 47... Kd5 {[%clk 0:00:02]} 48. h4 {[%clk 0:01:02.5]} 1-0